bitfinex-derivatives/quotes_ETHF0:USTF0_20250327
["timestamp","ask_amount","ask_price","bid_price","bid_amount"]
[1743106976197,2.34645,2009.5,2009.4,6.15220315]
[1743106976599,2.34645,2009.5,2009.4,5.15670315]
[1743106978293,2.34645,2009.5,2009.4,5.15672735]
[1743106978590,2.34645,2009.5,2009.4,5.1567274]
[1743106978995,5.55425,2009.5,2009.4,0.4939274]
[1743106979190,0.99555,2009.3,2009.2,3.214]
[1743106979497,0.99555,2009.3,2009.2,1.80164243]
[1743106980002,2.41425,2009.3,2009.2,1.80164243]
[1743106980184,2.41425,2009.3,2009.2,0.49394243]
[1743106980390,2.41425,2009.3,2009.2,1.90634243]
[1743106980587,2.41425,2009.3,2009.2,1.90644338]
[1743106983597,2.41425,2009.3,2009.2,1.90663226]
[1743106987404,2.41425,2009.3,2009.2,1.90650343]
[1743106987902,4.2033,2009.5,2009.2,6.10990343]
[1743106988203,2.35428,2009.7,2009.6,0.9954]
[1743106988409,2.35428,2009.7,2009.6,1.48950343]
[1743106988410,0.99538,2009.7,2009.6,1.48950343]
[1743106988702,0.99538,2009.7,2009.6,4.71150343]
[1743106989103,0.99538,2009.7,2009.6,6.77950343]
[1743106990303,0.99533,2009.8,2009.7,0.9953]
[1743106990499,0.99533,2009.8,2009.7,2.88750343]
[1743106991506,0.99533,2009.8,2009.7,2.88725117]
[1743106993099,0.99533,2009.8,2009.7,2.88707463]
[1743106994912,0.99533,2009.8,2009.7,2.88691229]
[1743106995311,0.99533,2009.8,2009.7,1.89161229]
[1743106996009,4.20313,2009.8,2009.7,1.89161229]
[1743106996809,4.20313,2009.8,2009.7,1.89156639]
[1743106999803,4.20313,2009.8,2009.7,0.49346639]
[1743107000005,0.99555,2009.3,2009.2,7.41836]
[1743107000205,0.99555,2009.3,2009.2,8.59390007]
[1743107000402,3.82669,2009.7,2009.2,7.59834007]
[1743107000602,0.99548,2009.5,2009.4,0.99543]
[1743107000816,0.99548,2009.5,2009.4,2.14228661]
[1743107002615,0.99548,2009.5,2009.4,1.14685661]
[1743107002811,0.99548,2009.5,2009.4,2.14235661]
[1743107003021,0.99548,2009.5,2009.4,3.47205661]
[1743107004217,0.99548,2009.5,2009.4,2.9786]
[1743107004409,0.99548,2009.5,2009.4,3.4720114]
[1743107005321,0.99544,2009.6,2009.5,0.99541]
[1743107005612,0.99544,2009.6,2009.5,9.2266214]
[1743107005818,0.99544,2009.6,2009.5,9.9166214]
[1743107006119,0.99544,2009.6,2009.5,9.42321]
[1743107006317,0.99544,2009.6,2009.5,9.9165767]
[1743107006616,0.99539,2009.7,2009.6,0.99536]
[1743107006810,0.99533,2009.8,2009.7,0.99531]
[1743107007005,0.99533,2009.8,2009.7,2.1456767]
[1743107007213,0.99533,2009.8,2009.7,3.5285767]
[1743107008118,0.99533,2009.8,2009.7,3.5285298]
[1743107008511,1.3213,2009.9,2009.8,0.9953]
[1743107008512,2.31659,2009.9,2009.8,0.9953]
[1743107008711,2.31659,2009.9,2009.8,2.8715198]
[1743107008912,2.31659,2009.9,2009.8,3.5374198]
[1743107009113,2.31659,2009.9,2009.8,6.7644198]
[1743107009914,2.31659,2009.9,2009.8,6.76434841]
[1743107011819,2.31659,2009.9,2009.8,6.76437341]
[1743107013316,2.31659,2009.9,2009.8,5.10317341]
[1743107013621,2.31659,2009.9,2009.8,0.49327341]
[1743107013822,0.99535,2009.7,2009.6,5.61469]
[1743107014124,0.99535,2009.7,2009.6,6.10812937]
[1743107014619,2.39555,2009.7,2009.6,6.10812937]
[1743107015713,2.39555,2009.7,2009.6,5.11273937]
[1743107016119,2.39555,2009.7,2009.6,0.49343937]
[1743107016630,3.70055,2009.7,2009.6,0.49343937]
[1743107016823,3.70055,2009.7,2009.6,1.86063937]
[1743107017423,3.70055,2009.7,2009.6,2.85603937]
[1743107018215,3.70055,2009.7,2009.6,1.86063937]
[1743107018419,3.70055,2009.7,2009.6,2.85603937]
[1743107019020,3.70055,2009.7,2009.6,2.85663141]
[1743107019427,3.70055,2009.7,2009.6,1.86123141]
[1743107019629,3.70055,2009.7,2009.6,0.49403141]
[1743107020522,3.70055,2009.7,2009.6,1.91843141]
[1743107023133,3.70055,2009.7,2009.6,1.91840828]
[1743107024936,3.70055,2009.7,2009.6,0.49400828]
[1743107025131,3.70055,2009.7,2009.6,1.83722264]
[1743107025331,2.7052,2009.7,2009.6,2.83262264]
[1743107025628,0.99523,2010.0,2009.9,0.9952]
[1743107025832,2.41383,2010.0,2009.9,1.48922264]
[1743107026934,2.41383,2010.0,2009.9,1.48905658]
[1743107028135,4.20295,2010.1,2010.0,0.9952]
[1743107028334,4.20295,2010.1,2010.0,2.20075658]
[1743107028835,4.20295,2010.1,2010.0,2.20055775]
[1743107029730,1.4186,2010.2,2010.1,0.99515]
[1743107029943,2.4137,2010.2,2010.1,1.48880775]
[1743107030230,1.4186,2010.2,2010.1,2.18530775]
[1743107030425,2.32259,2010.3,2010.2,0.9951]
[1743107030626,2.32259,2010.3,2010.2,1.48875775]
[1743107033945,2.32259,2010.3,2010.2,0.49365775]
[1743107034437,2.32255,2010.3,2010.2,0.49320081]
[1743107038140,0.99515,2010.1,2010.0,0.99519]
[1743107038335,0.99515,2010.1,2010.0,1.48830478]
[1743107038542,0.9952,2010.0,2009.9,4.87442]
[1743107038742,0.9952,2010.0,2009.9,5.36754484]
[1743107039342,2.4284,2010.0,2009.9,5.36754484]
[1743107041961,2.4284,2010.0,2009.9,0.49312484]
[1743107042161,3.1447,2010.0,2009.9,0.49312484]
[1743107042460,0.9954,2009.6,2009.5,4.20325]
[1743107042659,0.9954,2009.6,2009.5,3.70093088]
[1743107042858,0.9954,2009.6,2009.5,5.07863088]
[1743107043059,0.9954,2009.6,2009.5,6.07408088]
[1743107043357,0.9954,2009.6,2009.5,5.58095]
[1743107043558,0.9954,2009.6,2009.5,6.07404939]
[1743107045055,0.9954,2009.6,2009.5,5.07859939]
[1743107045359,2.4158,2009.6,2009.5,5.07859939]
[1743107045546,2.4158,2009.6,2009.5,3.70089939]
[1743107046258,2.4158,2009.6,2009.5,5.01729939]
[1743107047160,2.4158,2009.6,2009.5,5.01725083]
[1743107047356,2.4158,2009.6,2009.5,1.80945083]
[1743107047951,2.4158,2009.6,2009.5,1.3164]
[1743107054161,2.4158,2009.6,2009.5,1.9969]
[1743107054663,2.4158,2009.6,2009.5,2.99235]
[1743107054863,2.4158,2009.6,2009.5,1.9969]
[1743107056455,2.4158,2009.6,2009.5,3.48485091]
[1743107056666,2.4158,2009.6,2009.5,2.48940091]
[1743107056869,2.4158,2009.6,2009.5,3.48485091]
[1743107057556,2.4158,2009.6,2009.5,1.9969]
[1743107057758,2.4158,2009.6,2009.5,1.3164]
[1743107058858,0.9955,2009.4,2009.3,1.71632]
[1743107059057,0.9955,2009.4,2009.3,2.20884575]
[1743107060265,0.9955,2009.4,2009.3,3.60884575]
[1743107060469,2.3451,2009.4,2009.3,3.60884575]
[1743107061057,2.3451,2009.4,2009.3,2.61332575]
[1743107061457,2.3451,2009.4,2009.3,3.60887575]
[1743107061864,2.3451,2009.4,2009.3,2.61332575]
[1743107062062,2.3451,2009.4,2009.3,3.60887575]
[1743107062464,2.3451,2009.4,2009.3,2.61332575]
[1743107066079,2.3451,2009.4,2009.3,2.6138322]
[1743107066961,2.3451,2009.4,2009.3,1.8930322]
[1743107068566,0.9956,2009.2,2009.1,0.00747645]
[1743107068771,0.9956,2009.2,2009.1,0.50100184]
[1743107069178,2.4374,2009.2,2009.1,0.50100184]
[1743107069565,5.6452,2009.2,2009.1,0.50100184]
[1743107069871,5.6452,2009.2,2009.1,0.00747645]
[1743107072574,8.1452,2009.2,2009.1,0.00747645]
[1743107072770,13.1016,2009.2,2008.6,1.4272]
[1743107073076,0.99584,2008.7,2008.6,1.4272]
[1743107073278,0.99584,2008.7,2008.6,1.92099953]
[1743107074087,2.29894,2008.7,2008.6,1.92099953]
[1743107075375,2.29894,2008.7,2008.6,1.4272]
[1743107075777,0.99594,2008.5,2008.4,0.00747645]
[1743107075982,0.99594,2008.5,2008.4,1.85752026]
[1743107076479,2.30574,2008.5,2008.4,1.85752026]
[1743107077276,2.30574,2008.5,2008.4,1.85730893]
[1743107077471,2.99814,2008.5,2008.4,1.36447645]
[1743107079280,2.99814,2008.5,2008.4,0.00747645]
[1743107081584,8.71614,2008.5,2008.4,0.00747645]
[1743107081981,8.71614,2008.5,2008.4,6.45e-06]
[1743107082790,14.66814,2008.5,2008.4,6.45e-06]
[1743107089586,14.7497412,2008.5,2008.4,6.45e-06]
[1743107091289,14.7497412,2008.5,2007.5,1.4249]
[1743107091290,0.99639,2007.6,2007.5,1.4249]
[1743107092693,0.99639,2007.6,2007.5,2.7635]
[1743107092891,0.99639,2007.6,2007.5,3.75994]
[1743107093087,0.99639,2007.6,2007.5,2.7635]
[1743107093287,4.6149,2007.7,2007.5,2.7635]
[1743107093288,4.20418,2007.7,2007.5,2.7635]
[1743107093487,4.20418,2007.7,2007.6,1.3386]
[1743107093897,4.20418,2007.7,2007.6,2.33499]
[1743107094201,4.20418,2007.7,2007.6,1.3386]
[1743107096191,5.59298,2007.7,2007.6,1.3386]
[1743107099099,4.20418,2007.7,2007.6,1.3386]
[1743107102192,5.64528,2007.7,2007.6,1.3386]
[1743107102903,4.20418,2007.7,2007.6,1.3386]
[1743107104198,4.20418,2007.7,2007.6,1.83143835]
[1743107106491,3.2078,2007.7,2007.6,2.82782835]
[1743107106805,0.00747645,2007.8,2007.7,0.99634]
[1743107107000,0.00747645,2007.8,2007.7,2.87877835]
[1743107107597,0.99628,2007.9,2007.8,0.99629]
[1743107107798,0.99628,2007.9,2007.8,2.89962835]
[1743107112407,0.99628,2007.9,2007.8,1.90333835]
[1743107112601,3.81004645,2008.1,2007.9,0.99622]
[1743107112602,0.99623,2008.0,2007.9,0.99622]
[1743107112803,0.99623,2008.0,2007.9,2.81645835]
[1743107114505,0.99623,2008.0,2007.9,2.32362]
[1743107114712,0.99623,2008.0,2007.9,2.81744989]
[1743107115305,0.99623,2008.0,2007.9,1.82122989]
[1743107116414,0.99623,2008.0,2007.9,1.8211771]
[1743107117114,4.20403,2008.0,2007.9,1.8211771]
[1743107117415,4.86903,2008.0,2007.9,1.8211771]
[1743107117908,4.20403,2008.0,2007.9,1.8211771]
[1743107124017,4.20403,2008.0,2007.9,1.82127641]
[1743107125919,4.20403,2008.0,2007.9,1.82131841]
[1743107127411,4.20403,2008.0,2007.9,2.81755841]
[1743107128221,4.20403,2008.0,2007.9,1.82131841]
[1743107128420,4.20403,2008.0,2007.9,2.81755841]
[1743107129519,1.33307645,2008.1,2008.0,0.99619]
[1743107129520,0.00747645,2008.1,2008.0,0.99619]
[1743107129712,1.00361645,2008.1,2008.0,2.82880841]
[1743107129912,1.00361645,2008.1,2008.0,2.33489]
[1743107130117,1.00361645,2008.1,2008.0,2.82899618]
[1743107131417,2.37151645,2008.1,2008.0,2.82899618]
[1743107131615,2.37151645,2008.1,2008.0,2.8288681]
[1743107132015,2.37151645,2008.1,2008.0,3.5390681]
[1743107135323,2.37151645,2008.1,2008.0,3.53932861]
[1743107136029,1.37537645,2008.1,2008.0,3.53932861]
[1743107136223,2.37151645,2008.1,2008.0,3.53932861]
[1743107136528,3.03811645,2008.1,2008.0,2.82912861]
[1743107137431,3.03811645,2008.1,2008.0,3.48822861]
[1743107139120,2.37151645,2008.1,2008.0,3.48822861]
[1743107140427,0.00747645,2008.1,2008.0,3.48822861]
[1743107142035,1.00361645,2008.1,2008.0,3.48822861]
[1743107142926,1.00361645,2008.1,2008.0,3.48812345]
[1743107146935,1.00361645,2008.1,2008.0,3.48803701]
[1743107147635,0.00747645,2008.1,2008.0,3.48803701]
[1743107147932,1.00361645,2008.1,2008.0,3.48803701]
[1743107148134,2.43981645,2008.1,2008.0,3.48803701]
[1743107149135,0.00747645,2008.1,2008.0,3.48803701]
[1743107152334,0.00747645,2008.1,2008.0,3.48819945]
[1743107153925,1.00361645,2008.1,2008.0,3.48819945]
[1743107154127,2.34231645,2008.1,2008.0,3.48819945]
[1743107154333,1.34617645,2008.1,2008.0,3.48834255]
[1743107155630,2.34231645,2008.1,2008.0,3.48834255]
[1743107155831,2.34231645,2008.1,2008.0,6.69614255]
[1743107158822,2.34231645,2008.1,2008.0,6.03751693]
[1743107160038,2.34231645,2008.1,2008.0,6.03768838]
[1743107161139,0.00747645,2008.1,2008.0,6.03768838]
[1743107162331,1.44087645,2008.1,2008.0,6.03768838]
[1743107163638,2.43701645,2008.1,2008.0,6.03768838]
[1743107165140,2.43701645,2008.1,2008.0,6.03768054]
[1743107169146,1.44087645,2008.1,2008.0,6.03768054]
[1743107170744,0.7214,2008.3,2008.0,6.03768054]
[1743107170745,0.99584,2008.7,2008.6,0.99585]
[1743107170934,0.99584,2008.7,2008.6,1.49092941]
[1743107171541,0.99584,2008.7,2008.6,4.69872941]
[1743107171939,2.32464,2008.7,2008.6,6.05782941]
[1743107172142,1.3288,2008.7,2008.6,6.05782941]
[1743107172846,1.3288,2008.7,2008.6,6.05680005]
[1743107173043,2.6858,2008.8,2008.7,0.99584]
[1743107173249,2.005,2008.8,2008.7,2.84899005]
[1743107177847,3.00079,2008.8,2008.7,2.84899005]
[1743107178249,3.00079,2008.8,2008.7,2.8477808]
[1743107179653,2.005,2008.8,2008.7,2.8477808]
[1743107180249,2.005,2008.8,2008.7,2.84761682]
[1743107183658,1.3288,2008.8,2008.7,2.84761682]
[1743107183957,1.70033,2009.0,2008.9,0.99574]
[1743107184159,1.70033,2009.0,2008.9,1.48841682]
[1743107184955,3.05213,2009.0,2008.9,1.48841682]
[1743107185357,3.05213,2009.0,2008.9,2.92081682]
[1743107185955,3.05213,2009.0,2008.9,2.92058601]
[1743107187666,3.05213,2009.0,2008.9,2.42814]
[1743107187865,3.05213,2009.0,2008.9,2.92059932]
[1743107189760,3.05213,2009.0,2008.9,2.92066917]
[1743107191766,3.05213,2009.0,2008.9,2.92073975]
[1743107194564,1.3518,2009.0,2008.9,2.92073975]
[1743107194960,2.34749,2009.0,2008.9,2.92073975]
[1743107195361,2.34749,2009.0,2008.9,2.9211204]
[1743107196169,3.03279,2009.0,2008.9,2.9211204]
[1743107199164,3.03279,2009.0,2008.9,2.92176069]
[1743107199368,3.03279,2009.0,2008.9,2.92176921]
[1743107201069,3.03279,2009.0,2008.9,2.92269003]
[1743107203188,3.03279,2009.0,2008.9,2.92296437]
[1743107204894,3.03279,2009.0,2008.9,2.92296786]
[1743107206791,3.03279,2009.0,2008.9,2.92294198]
[1743107208696,2.34749,2009.0,2008.9,2.92294198]
[1743107210786,3.06269,2009.0,2008.9,2.92293977]
[1743107210986,3.06269,2009.0,2008.9,2.92294584]
[1743107211796,3.06269,2009.0,2008.9,0.49480584]
[1743107216504,0.99574,2008.9,2008.8,1.3602]
[1743107216801,2.36674,2008.9,2008.8,1.85491564]
[1743107218900,2.36674,2008.9,2008.8,1.85484554]
[1743107221603,2.36674,2008.9,2008.8,1.3602]
[1743107221796,2.36674,2008.9,2008.8,1.85476525]
[1743107222806,2.36674,2008.9,2008.8,2.85055525]
[1743107223000,2.36674,2008.9,2008.8,1.85476525]
[1743107223605,2.36674,2008.9,2008.8,1.85471973]
[1743107223901,2.36674,2008.9,2008.8,2.85050973]
[1743107224496,2.36674,2008.9,2008.8,1.85471973]
[1743107225510,2.36674,2008.9,2008.8,1.85471244]
[1743107228612,2.36674,2008.9,2008.8,2.85050244]
[1743107229301,2.36674,2008.9,2008.8,1.85472212]
[1743107229705,2.36674,2008.9,2008.8,2.85051212]
[1743107230616,0.99573,2009.0,2008.9,0.99569]
[1743107230807,3.01328,2009.1,2009.0,0.99569]
[1743107231114,2.32358,2009.1,2009.0,2.16471212]
[1743107231308,2.32358,2009.1,2009.0,4.23146843]
[1743107231708,3.88662,2009.3,2009.1,0.99564]
[1743107231709,1.3977,2009.3,2009.1,0.99564]
[1743107231903,2.0302,2009.3,2009.2,1.87157843]
[1743107232715,3.0258,2009.3,2009.2,2.86717843]
[1743107232915,3.0258,2009.3,2009.2,1.87157843]
[1743107233217,3.0258,2009.3,2009.2,1.87142403]
[1743107233515,2.3235,2009.3,2009.2,1.87142403]
[1743107233716,2.3235,2009.3,2009.2,2.86702403]
[1743107234817,1.3881,2009.4,2009.3,0.99555]
[1743107235008,3.0426,2009.4,2009.3,3.57819706]
[1743107235209,2.3472,2009.4,2009.3,3.57819706]
[1743107236910,4.20328,2009.5,2009.4,0.9955]
[1743107237109,5.53528,2009.5,2009.4,2.83244706]
[1743107237322,5.53528,2009.5,2009.4,3.51204706]
[1743107240121,5.53528,2009.5,2009.4,3.51101596]
[1743107242218,0.99535,2009.8,2009.7,0.99531]
[1743107242417,0.99535,2009.8,2009.7,4.69612596]
[1743107242816,2.30435,2009.8,2009.7,4.69612596]
[1743107243015,2.30435,2009.8,2009.7,6.71212596]
[1743107244422,0.99529,2009.9,2009.8,0.99525]
[1743107244722,2.35059,2009.9,2009.8,2.85732164]
[1743107246418,2.35059,2009.9,2009.8,2.85701561]
[1743107247415,2.40503,2010.0,2009.9,0.99525]
[1743107247618,1.70073,2010.0,2009.9,2.36495]
[1743107248819,0.99523,2010.0,2009.9,2.36495]
[1743107249019,1.3553,2010.1,2009.9,2.36495]
[1743107249020,2.3505,2010.1,2010.0,0.9952]
[1743107249225,2.3505,2010.1,2010.0,5.5218]
[1743107249821,2.3505,2010.1,2010.0,6.1875]
[1743107251136,0.99515,2010.1,2010.0,9.3735]
[1743107251440,2.34424,2010.2,2010.1,0.99515]
[1743107251634,2.34424,2010.2,2010.1,2.9188592]
[1743107252527,0.99514,2010.2,2010.1,2.9188592]
[1743107252730,2.34424,2010.2,2010.1,2.9188592]
[1743107253932,2.34424,2010.2,2010.1,2.9186848]
[1743107257734,2.34424,2010.2,2010.1,6.1264848]
[1743107259435,2.34424,2010.2,2010.1,5.63515]
[1743107259738,2.34424,2010.2,2010.1,5.13160679]
[1743107260443,2.34424,2010.2,2010.1,6.12675679]
[1743107261342,2.34424,2010.2,2010.1,5.63515]
[1743107261539,2.34424,2010.2,2010.1,6.12711037]
[1743107267237,2.34424,2010.2,2010.1,6.12766096]
[1743107269144,2.34424,2010.2,2010.1,6.12773585]
[1743107270148,2.34424,2010.2,2010.1,5.13258585]
[1743107270842,2.34424,2010.2,2010.1,5.1329072]
[1743107271646,2.34424,2010.2,2010.1,6.1280572]
[1743107272953,2.34424,2010.2,2010.1,6.12846953]
[1743107276250,2.34424,2010.2,2010.1,2.92066953]
[1743107276453,2.34424,2010.2,2010.1,6.12846953]
[1743107276650,2.34424,2010.2,2010.1,6.12913955]
[1743107279160,2.34424,2010.2,2010.1,6.12955408]
[1743107279855,2.34424,2010.2,2010.1,5.13440408]
[1743107280743,2.34424,2010.2,2010.1,6.12955408]
[1743107285749,2.34424,2010.2,2010.1,5.13440408]
[1743107286054,2.34424,2010.2,2010.1,3.70220408]
[1743107286555,2.34424,2010.2,2010.1,5.10260408]
[1743107287146,2.34424,2010.2,2010.1,3.70220408]
[1743107287556,2.34424,2010.2,2010.1,5.11250408]
[1743107288753,2.34424,2010.2,2010.1,5.11261781]
[1743107291352,2.34424,2010.2,2010.1,5.11257762]
[1743107293057,2.34424,2010.2,2010.1,5.1125544]
[1743107295060,2.34424,2010.2,2010.1,5.11252711]
[1743107300660,2.34424,2010.2,2010.1,4.6181]
[1743107300865,2.34424,2010.2,2010.1,5.11252541]
[1743107302667,2.34424,2010.2,2010.1,5.11252471]
[1743107304469,2.34424,2010.2,2010.1,4.6181]
[1743107304671,2.34424,2010.2,2010.1,5.11253432]
[1743107305370,2.34424,2010.2,2010.1,1.90473432]
[1743107310372,2.34424,2010.2,2010.1,1.90477547]
[1743107312074,2.34424,2010.2,2010.1,1.4103]
[1743107312274,2.34424,2010.2,2010.1,1.90479137]
[1743107313570,0.9954,2009.6,2009.5,0.00747645]
[1743107313775,0.9954,2009.6,2009.5,0.69767645]
[1743107313975,0.9954,2009.6,2009.5,0.00747645]
[1743107314974,2.4102,2009.6,2009.5,1.42747645]
[1743107315970,5.618,2009.6,2009.5,1.42747645]
[1743107316176,5.618,2009.6,2009.5,0.00747645]
[1743107316376,9.59963,2009.6,2009.2,0.6902]
[1743107316577,0.9955,2009.4,2009.3,1.42]
[1743107317074,2.4103,2009.4,2009.3,1.42]
[1743107321682,0.99549,2009.5,2009.4,0.99545]
[1743107322086,0.99545,2009.5,2009.4,1.66765]
[1743107322381,4.21070645,2009.6,2009.5,0.99545]
[1743107322577,4.21070645,2009.6,2009.5,3.15185]
[1743107324484,4.21070645,2009.6,2009.5,6.33585]
[1743107326181,3.21527645,2009.6,2009.5,6.33585]
[1743107326488,0.00747645,2009.6,2009.5,6.33585]
[1743107327381,0.00747645,2009.6,2009.5,9.54365]
[1743107327587,0.00747645,2009.6,2009.5,12.04365]
[1743107327788,4.20308,2009.9,2009.8,0.9953]
[1743107327982,2.1238,2010.1,2009.9,0.9952]
[1743107328284,0.99515,2010.1,2010.0,2.4181]
[1743107330791,2.43105,2010.1,2010.0,1.4229]
[1743107331176,2.43105,2010.1,2010.0,2.8244]
[1743107333986,2.43105,2010.1,2010.0,3.8196]
[1743107339491,2.43105,2010.1,2010.0,2.8244]
[1743107341288,2.43105,2010.1,2010.0,1.4015]
[1743107342196,2.43105,2010.1,2010.0,2.3967]
[1743107342492,2.43105,2010.1,2010.0,1.4015]
[1743107342796,2.43105,2010.1,2010.0,2.3967]
[1743107344896,3.13515,2010.1,2010.0,2.3967]
[1743107345789,3.13515,2010.1,2010.0,1.4015]
[1743107346703,0.9956,2009.3,2009.2,0.99553]
[1743107346896,0.9956,2009.3,2009.2,5.51383]
[1743107348099,0.9956,2009.3,2009.2,6.93323]
[1743107348100,2.4251,2009.3,2009.2,6.93323]
[1743107351503,2.4251,2009.3,2009.2,4.6034]
[1743107352800,0.9956,2009.2,2009.1,0.00747645]
[1743107353101,3.7156,2009.2,2009.1,0.00747645]
[1743107356105,3.7156,2009.2,2009.1,1.40257645]
[1743107358903,3.7156,2009.2,2009.1,0.00747645]
[1743107367709,0.99569,2009.0,2008.9,1.388]
[1743107367912,4.20349,2009.0,2008.9,1.388]
[1743107369315,0.99579,2008.8,2008.7,2.43170645]
[1743107370615,0.99579,2008.8,2008.7,3.76960645]
[1743107370914,2.42529,2008.8,2008.7,2.77377645]
[1743107372015,2.42529,2008.8,2008.7,1.34537645]
[1743107372211,3.12199,2008.8,2008.7,1.34537645]
[1743107375117,2.42529,2008.8,2008.7,1.34537645]
[1743107375326,0.99579,2008.8,2008.7,2.34121645]
[1743107380823,0.99579,2008.8,2008.7,1.34537645]
[1743107381123,3.00529,2008.8,2008.7,1.34537645]
[1743107381322,2.34309,2008.8,2008.7,2.34121645]
[1743107381523,0.99579,2008.8,2008.7,2.34121645]
[1743107386224,0.99579,2008.8,2008.7,0.00747645]
[1743107386433,3.79969,2008.8,2008.7,1.32687645]
[1743107387133,3.79969,2008.8,2008.7,0.00747645]
[1743107388234,0.99584,2008.7,2008.6,3.2078]
[1743107388530,2.34124,2008.7,2008.6,3.2078]
[1743107389028,0.99589,2008.6,2008.5,1.3194]
[1743107389236,2.34129,2008.6,2008.5,1.3194]
[1743107390833,0.99599,2008.4,2008.3,0.00747645]
[1743107392338,2.42979,2008.4,2008.3,1.41097645]
[1743107395433,2.42979,2008.4,2008.3,0.00747645]
[1743107395633,5.63759,2008.4,2008.3,0.00747645]
[1743107396035,5.63759,2008.4,2008.3,2.43211645]
[1743107397153,4.20379,2008.4,2008.3,3.15141645]
[1743107397345,0.99594,2008.6,2008.4,2.48999]
[1743107397643,0.99594,2008.6,2008.5,1.3105]
[1743107398751,0.99594,2008.6,2008.5,2.30639]
[1743107400648,2.34284,2008.6,2008.5,2.30639]
[1743107401054,2.34284,2008.6,2008.5,1.3105]
[1743107401351,0.99599,2008.4,2008.3,6.40027645]
[1743107401555,0.99599,2008.4,2008.3,7.83127645]
[1743107401752,0.99599,2008.4,2008.3,5.64231645]
[1743107401949,2.34289,2008.4,2008.3,5.64231645]
[1743107402753,0.99599,2008.4,2008.3,5.64231645]
[1743107404355,2.42969,2008.4,2008.3,5.64231645]
[1743107405956,2.42969,2008.4,2008.3,4.64627645]
[1743107406157,2.42969,2008.4,2008.3,5.64231645]
[1743107406558,2.42969,2008.4,2008.3,2.43451645]
[1743107407557,2.42969,2008.4,2008.3,1.43847645]
[1743107407756,2.42969,2008.4,2008.3,2.43451645]
[1743107408451,2.42969,2008.4,2008.3,1.43847645]
[1743107408655,3.11049,2008.4,2008.3,1.43847645]
[1743107411057,3.11049,2008.4,2008.3,2.43451645]
[1743107411357,2.42969,2008.4,2008.3,2.43451645]
[1743107412259,0.6867,2008.5,2008.4,0.99594]
[1743107412260,0.99598,2008.5,2008.4,0.99594]
[1743107412560,0.99598,2008.5,2008.4,2.30244]
[1743107412755,0.99598,2008.5,2008.4,3.64494]
[1743107413463,2.31038,2008.5,2008.4,3.64494]
[1743107415461,0.99598,2008.5,2008.4,3.64494]
[1743107416261,4.20368,2008.7,2008.6,0.99589]
[1743107418957,0.99588,2008.7,2008.6,0.99589]
[1743107421068,0.99589,2008.6,2008.5,1.4447]
[1743107421265,2.35829,2008.6,2008.5,4.6297]
[1743107421563,2.35829,2008.6,2008.5,5.62564]
[1743107421964,2.35829,2008.6,2008.5,4.6297]
[1743107422168,2.35829,2008.6,2008.5,5.62564]
[1743107426969,0.99589,2008.6,2008.5,5.62564]
[1743107427173,3.08048,2008.7,2008.6,0.99589]
[1743107427473,3.08048,2008.7,2008.6,2.99369]
[1743107427965,2.36338,2008.7,2008.6,2.99369]
[1743107428672,3.21527645,2009.2,2008.7,2.48962]
[1743107428866,1.408,2009.1,2009.0,0.99569]
[1743107429174,2.40364,2009.1,2009.0,0.99569]
[1743107429561,0.99564,2009.1,2009.0,2.41059]
[1743107429973,3.09460645,2009.2,2009.1,0.99564]
[1743107430173,3.09460645,2009.2,2009.1,2.41054]
[1743107430683,3.09460645,2009.2,2009.1,1.4149]
[1743107433374,2.09897645,2009.2,2008.9,4.20354]
[1743107433672,0.99569,2009.0,2008.9,0.99574]
[1743107433869,0.99569,2009.0,2008.9,2.38754]
[1743107434065,2.30699,2009.0,2008.9,2.38754]
[1743107434975,2.30699,2009.0,2008.9,1.3918]
[1743107435177,2.30699,2009.0,2008.9,2.38754]
[1743107436273,2.30699,2009.0,2008.9,1.3918]
[1743107437467,2.30699,2009.0,2008.9,2.38754]
[1743107441075,2.30699,2009.0,2008.9,3.05104]
[1743107443087,0.99569,2009.0,2008.9,3.05104]
[1743107443271,2.43668,2009.1,2009.0,0.99564]
[1743107443577,3.89877645,2009.2,2009.0,2.43174]
[1743107443780,0.99564,2009.1,2009.0,2.43174]
[1743107443983,0.99564,2009.1,2009.0,0.99564]
[1743107444183,6.33540645,2009.2,2009.1,0.99564]
[1743107444380,5.65190645,2009.2,2009.1,4.17964]
[1743107445880,2.48912,2009.1,2008.8,3.184]
[1743107446089,2.48912,2009.1,2008.8,4.17973]
[1743107446090,0.99579,2008.9,2008.8,4.17973]
[1743107446786,1.65309,2008.9,2008.8,4.17973]
[1743107448887,0.6573,2008.9,2008.8,4.17973]
[1743107449281,1.65304,2008.9,2008.8,4.17973]
[1743107449479,1.9778,2008.9,2008.8,4.17973]
[1743107449785,3.21527645,2009.2,2008.8,3.184]
[1743107450088,4.20307,2010.0,2009.9,0.99525]
[1743107450588,6.18587,2010.0,2009.9,0.99525]
[1743107450785,0.9953,2009.9,2009.8,0.99526]
[1743107450983,2.3158,2009.9,2009.8,0.99526]
[1743107451177,0.9953,2009.8,2009.7,2.3754]
[1743107451386,0.99535,2009.7,2009.6,0.00747645]
[1743107451595,1.68645,2009.7,2009.6,1.00287645]
[1743107454089,6.35811,2010.0,2009.8,0.99525]
[1743107454286,2.41209,2009.9,2009.8,0.99525]
[1743107455082,0.9953,2009.8,2009.7,5.5302]
[1743107455588,2.41209,2009.9,2009.8,0.9953]
[1743107456381,1.4168,2009.9,2009.8,0.9953]
[1743107457592,2.41205,2009.9,2009.8,0.9953]
[1743107459079,0.9953,2009.8,2009.7,5.5302]
[1743107459284,0.9953,2009.8,2009.7,3.183]
[1743107459285,2.405,2009.8,2009.7,3.183]
[1743107459491,2.405,2009.8,2009.7,4.17835]
[1743107461186,2.405,2009.8,2009.7,3.183]
[1743107461587,2.405,2009.8,2009.7,4.17835]
[1743107463392,2.405,2009.8,2009.7,5.58845]
[1743107466591,0.99523,2010.0,2009.9,0.9952]